Cogmind - Beta 13 @@@ ROGUE MODE // 2024.04.07 @ 16:19:41 Player: Smie Result: Destroyed by Y-72 Warden with Railgun Performance ------------- Evolutions (8) 4000 Regions Visited (16) 3200 Robots Destroyed (86) 430 Value Destroyed (3195) 3195 Prototype IDs (38) 760 Alien Tech Used (0) 0 Bonus (1305) 1305 TOTAL SCORE: 12890 Bonus ------- High Alert Combat Kills 80 Follower Combat Kills 125 Entered DSFs 500 Aligned with FarCom 300 Met Data Miner 300 Cogmind --------- Core Integrity 0/1450 Matter 115/300 Energy 92/100 System Corruption 5% Temperature Cool (11) Movement Flying (37) Location -2/Research Parts ------- > --- POWER (2) -------- (None) > --- PROPULSION (6) --- Field Propulsion Array Field Propulsion Array > --- UTILITY (11) ----- Advanced Signal Interpreter Improved Targeting Computer Advanced Targeting Computer > --- WEAPON (4) ------- (None) > --- INVENTORY (5) ---- Field Propulsion Array Advanced Targeting Computer Wave Gun Peak State ------------ > --- POWER ------------ Quantum Reactor > --- PROPULSION ------- Cooled Field Propulsion Drive Cooled Field Propulsion Drive Field Propulsion Array Q-thruster > --- UTILITY ---------- Structural Scanner Advanced Signal Interpreter Improved Targeting Computer Advanced Targeting Computer Advanced Targeting Computer Melee Analysis Suite Improved Melee Analysis Suite Improved Target Analyzer Improved Hacking Suite System Shield Advanced Corruption Screen > --- WEAPON ----------- Power Sword > --- INVENTORY -------- Advanced Weight Redist. System Advanced Targeting Computer Wave Gun Fusion Bomb Launcher [Rating: 96] Favorites ----------- Power Light Nuclear Core Engine Light Ion Engine Power Core Light Nuclear Core Reactor Quantum Reactor Propulsion Aluminum Leg Treads Light Treads Leg Aluminum Leg Wheel Compact Wheel Hover Unit Improved Hover Unit Flight Unit Cooled Field Propulsion Drive Utility Medium Storage Unit Device Structural Scanner Storage Medium Storage Unit Processor 0b10 Alert Chip Hackware Hacking Suite Protection Improved Light Armor Plating Weapon Power Sword Energy Gun Particle Gun Ballistic Gun High-powered Shotgun Launcher Rocket Launcher Impact Weapon Thunder Hammer Slashing Weapon Power Sword Build | -11 -10 -10 -10 -9 -8 -7 -7 -7 -7 -6 -6 -5 -4 -4 -3 -2 ------- Run | Yrd Mat Min Exi Min Mat Fac Low Low Dat Pro Fac Fac Fac DSF Res Res Slots Evolved 16 | . . . . . 4 2 . . . . 2 2 2 . 2 2 Power 1 | . . . . . . . . . . . . . . . 1 . Propulsion 4 | . . . . . 1 . . . . . 1 . . . . 2 Utility 9 | . . . . . 2 2 . . . . 1 1 2 . 1 . Weapon 2 | . . . . . 1 . . . . . . 1 . . . . Parts Attached 144 | 6 13 3 1 6 16 2 4 10 . 6 21 15 . 14 8 19 Power 20 | 1 2 1 . 1 1 . 1 2 . . 2 2 . 1 1 5 Engine 5 | 1 2 . . . . . 1 1 . . . . . . . . Core 10 | . . 1 . 1 1 . . 1 . . 2 2 . 1 1 . Reactor 5 | . . . . . . . . . . . . . . . . 5 Propulsion 47 | 2 5 . . 2 3 . 1 5 . 1 8 3 . 8 4 5 Treads 5 | . 5 . . . . . . . . . . . . . . . Leg 25 | . . . . 2 3 . 1 4 . 1 6 . . 8 . . Wheel 5 | 2 . . . . . . . 1 . . 1 1 . . . . Hover 2 | . . . . . . . . . . . 1 . . . 1 . Flight 10 | . . . . . . . . . . . . 2 . . 3 5 Utility 35 | 1 2 . 1 . 4 2 . 1 . 3 7 5 . 4 1 4 Device 12 | . 2 . . . 1 1 . 1 . 1 4 . . . . 2 Storage 2 | 1 . . 1 . . . . . . . . . . . . . Processor 13 | . . . . . 1 1 . . . 1 1 4 . 4 1 . Hackware 3 | . . . . . . . . . . . . 1 . . . 2 Protection 5 | . . . . . 2 . . . . 1 2 . . . . . Artifact . | . . . . . . . . . . . . . . . . . Weapon 42 | 2 4 2 . 3 8 . 2 2 . 2 4 5 . 1 2 5 Energy Gun 19 | 2 2 1 . 2 6 . 1 . . 1 3 1 . . . . Energy Cannon . | . . . . . . . . . . . . . . . . . Ballistic Gun 8 | . 2 . . . 1 . . . . 1 1 2 . 1 . . Ballistic Cannon . | . . . . . . . . . . . . . . . . . Launcher 9 | . . 1 . 1 1 . 1 1 . . . . . . . 4 Special Weapon . | . . . . . . . . . . . . . . . . . Impact Weapon 2 | . . . . . . . . . . . . 1 . . 1 . Slashing Weapon 4 | . . . . . . . . 1 . . . 1 . . 1 1 Piercing Weapon . | . . . . . . . . . . . . . . . . . Special Melee Weapon . | . . . . . . . . . . . . . . . . . Unidentified Prototypes 5 | . . . . . 2 . . . . . 1 1 . . 1 . Parts Lost 66 | . . . . . . . . 11 . 3 12 8 . 11 3 18 Power 8 | . . . . . . . . 1 . . 1 1 . 1 1 3 Propulsion 24 | . . . . . . . . 4 . 1 5 3 . 5 1 5 Utility 21 | . . . . . . . . 4 . 1 3 1 . 4 . 8 Weapon 13 | . . . . . . . . 2 . 1 3 3 . 1 1 2 Highest Loss Streak 11 | . . . . . . . . 11 . 2 9 5 . 8 1 7 To Critical Strikes . | . . . . . . . . . . . . . . . . . Average Slot Usage (%) 85 | . 96 100 100 100 99 100 100 68 61 92 91 70 63 65 56 56 Engine 2 | . 14 8 . . . . 3 3 . . . . . . . . Core 5 | . . 6 14 14 9 7 3 3 7 7 5 3 5 3 1 . Treads 3 | . 15 28 28 1 . . . . . . . . . . . . Leg 13 | . . . . 26 27 23 23 15 15 21 18 7 . 6 . . Wheel 1 | . 11 . . . . . . . . . . . . . . . Flight 1 | . . . . . . . . . . . . . 10 2 9 11 Device 9 | . 11 14 14 14 10 15 15 8 7 12 11 4 . . . 3 Storage 7 | . 14 14 14 14 9 7 7 7 7 7 6 4 . . . . Processor 14 | . . . . . 8 15 15 8 7 14 19 25 36 45 42 32 Protection 3 | . . . . . 7 7 7 1 . 5 5 2 . . . . Energy Gun 12 | . 26 13 14 26 19 15 12 8 7 5 11 3 . . . . Ballistic Gun 3 | . . 14 14 . 7 7 7 1 . 6 1 3 . . . . Slashing Weapon 2 | . . . . . . . . 5 7 7 4 1 . . . 2 Naked Turns . | . . . . . . . . . . . . . . . . . Heaviest Build 41 | 11 15 15 20 22 28 30 35 35 23 34 41 40 9 10 9 28 Greatest Support 60 | 26 40 40 40 20 30 30 35 42 27 47 60 40 20 48 26 45 Greatest Overweight (x) 4 | 1 4 . . 1 . . 1 1 . . 2 1 . 1 . 1 Average Overweight (x) . | . . . . . . . . . . . . . . . . . Largest Inventory Capacity 10 | 8 8 8 10 10 10 10 10 10 10 10 10 10 5 5 5 5 Average Capacity 8 | 7 8 8 8 10 10 10 10 10 10 10 10 8 5 5 5 5 Most Carried 10 | 6 8 8 8 10 10 9 10 10 9 10 10 10 5 5 5 5 Average Carried 8 | 3 7 8 7 9 9 8 9 8 9 9 9 8 5 4 4 3 Final Capacity 10 | 8 8 8 10 10 10 10 10 10 10 10 10 5 5 5 5 5 Final Carried 10 | 6 8 8 8 10 10 8 10 9 9 10 7 5 5 5 5 4 Class Distribution -------------------- 58% | Mutant 17% | Scavenger-Mutant 13% | Scavenger-Skirmisher 7% | Scavenger-Gunner Dominant Class ---------------- Mutant | -10/Materials Mutant | -10/Mines Mutant | -10/Exiles Mutant | -9/Mines Scavenger-Skirmisher | -8/Materials Scavenger-Skirmisher | -7/Factory Scavenger-Gunner | -7/Lower Caves Mutant | -7/Lower Caves Mutant | -7/Data Miner Scavenger-Mutant | -6/Proximity Caves Mutant | -6/Factory Scavenger-Mutant | -5/Factory Scavenger-Mutant | -4/Factory Mutant | -4/DSF Mutant | -3/Research Mutant | -2/Research Resources | -11 -10 -10 -10 -9 -8 -7 -7 -7 -7 -6 -6 -5 -4 -4 -3 -2 ----------- Run | Yrd Mat Min Exi Min Mat Fac Low Low Dat Pro Fac Fac Fac DSF Res Res Matter Collected 1632 | 260 50 111 . 87 257 . 137 100 . 108 177 108 . 140 88 9 Remotely . | . . . . . . . . . . . . . . . . . Salvage Created 3423 | 50 311 114 . 87 552 . 231 296 . 123 719 368 . 243 123 206 Parts 143 | . 17 10 . 5 17 . 9 11 . 3 37 13 . 6 1 14 Haulers Intercepted 6 | . 1 . . . 2 . . . . . 2 . . . . 1 Recyclers Shooed . | . . . . . . . . . . . . . . . . . Parts Field Recycled . | . . . . . . . . . . . . . . . . . Retrieved Matter . | . . . . . . . . . . . . . . . . . Parts Self-Destructed 28 | . . . . . . . 4 12 . 12 . . . . . . Prevented . | . . . . . . . . . . . . . . . . . Kills | -11 -10 -10 -10 -9 -8 -7 -7 -7 -7 -6 -6 -5 -4 -4 -3 -2 ------- Run | Yrd Mat Min Exi Min Mat Fac Low Low Dat Pro Fac Fac Fac DSF Res Res Combat Hostiles Destroyed 66 | . 5 5 . 2 8 . 9 9 . 3 7 4 . 5 1 8 Melee 12 | . . . . . . . 1 6 . . 2 2 . 1 . . Guns 27 | . 4 2 . 1 8 . 2 . . 3 5 2 . . . . AOE 20 | . . 3 . . . . 6 3 . . . . . . . 8 Classes Destroyed 15 | 1 4 1 . . 1 . 1 1 . . 4 . . 2 . . Worker 1 | . . . . . . . . . . . 1 . . . . . Builder 5 | . . . . . . . . . . . 1 . . . 3 1 Tunneler 1 | . 1 . . . . . . . . . . . . . . . Hauler 6 | . 1 . . . 2 . . . . . 2 . . . . 1 Recycler 3 | 1 . . . . 1 . . . . . . 1 . . . . Operator 1 | . . . . . . . . . . . 1 . . . . . Watcher 3 | . 2 . . . . . . . . . 1 . . . . . Swarmer 18 | . . 3 . . . . 4 1 . 2 . . . . . 8 Cutter 3 | . . . . . . . . . . . . . . 3 . . Grunt 27 | . 5 2 . 2 7 . 3 5 . . 2 . . . 1 . Duelist 2 | . . . . . . . . 2 . . . . . . . . Sentry 7 | . . . . . 1 . 1 1 . 1 2 1 . . . . Specialist 2 | . . . . . . . . . . . . . . 2 . . Hunter 1 | . . . . . . . 1 . . . . . . . . . Programmer 6 | . . . . . . . . . . . 3 3 . . . . Best Kill Streak 9 | 1 4 3 . 2 3 . 4 9 . 2 3 2 . 4 4 6 Combat Bots Only 9 | . 2 3 . 2 3 . 4 9 . 2 3 2 . 4 1 5 Max Kills in Single Turn 5 | 1 2 3 . 1 1 . 2 3 . 1 1 1 . 1 1 5 Gunslinging . | . . . . . . . . . . . . . . . . . Exploded 4 | . . 3 . . . . 2 3 . . . . . . . 4 Melee 1 | . . . . . . . 1 1 . . 1 1 . 1 . . Uniques/NPCs Destroyed . | . . . . . . . . . . . . . . . . . Combat | -11 -10 -10 -10 -9 -8 -7 -7 -7 -7 -6 -6 -5 -4 -4 -3 -2 -------- Run | Yrd Mat Min Exi Min Mat Fac Low Low Dat Pro Fac Fac Fac DSF Res Res Hostile Shots Fired 1027 | . 21 13 . 9 38 . 50 65 . 59 171 44 . 224 98 235 Missed 436 | . 3 4 . 2 12 . 25 17 . 27 57 15 . 103 61 110 Damage Taken 10386 | . 211 115 . 107 407 . 282 1080 . 406 1830 666 . 1646 844 2792 Core 3702 | . 56 37 . 28 89 . 59 221 . 92 222 121 . 782 522 1473 Absorbed by Shields 78 | . . . . . . . . . . . . . . 72 6 . Core Remaining (%) 66 | 100 . . . 51 83 . . . . 46 73 87 . 32 59 . Volleys Fired 155 | 3 27 7 . 7 26 . 16 4 . 17 28 14 . 2 . 4 Largest 3 | 2 2 2 . 2 3 . 3 3 . 2 3 2 . 1 . 1 Hottest 193 | 90 90 70 . 70 155 . 143 143 . 85 193 78 . 35 . 52 Shots Fired 316 | 6 54 14 . 14 71 . 33 11 . 20 64 23 . 2 . 4 Gun 303 | 6 54 13 . 14 71 . 28 8 . 20 64 23 . 2 . . Cannon . | . . . . . . . . . . . . . . . . . Launcher 13 | . . 1 . . . . 5 3 . . . . . . . 4 Special . | . . . . . . . . . . . . . . . . . Kinetic 87 | . . 7 . 7 19 . 8 3 . 17 10 14 . 2 . . Thermal 207 | 6 54 6 . 7 52 . 20 5 . 3 54 . . . . . Explosive 13 | . . 1 . . . . 5 3 . . . . . . . 4 Electromagnetic 9 | . . . . . . . . . . . . 9 . . . . Robot Hit Streak 22 | 6 9 7 . 11 6 . 8 3 . 5 20 19 . 21 . 22 Robot Miss Streak 4 | . 3 4 . 1 3 . 4 3 . 2 2 1 . . . . Penetration Max 2 | . . . . . . . . . . . 2 . . 1 . . Secondary Targets . | . . . . . . . . . . . . . . . . . Shots Hit Robots 284 | 6 35 8 . 11 56 . 16 25 . 15 59 35 . 11 5 2 Core Hits 152 | 2 15 8 . 2 29 . 15 24 . 6 23 13 . 2 . 13 Critical Kills 4 | . . . . . 1 . . . . . 2 . . 1 . . Critical Parts Destroyed 9 | . . . . . . . . . . . 5 1 . 3 . . Critical Strikes 29 | . 4 . . 2 1 . . 4 . 1 10 3 . 4 . . Burn 8 | . 4 . . 2 . . . . . . 2 . . . . . Destroy 10 | . . . . . 1 . . . . . 7 1 . 1 . . Corrupt 1 | . . . . . . . . . . . . 1 . . . . Smash 3 | . . . . . . . . . . . . . . 3 . . Sever 7 | . . . . . . . . 4 . 1 1 1 . . . . Melee Attacks 120 | . . . . . . . . 26 . 4 17 16 . 14 8 35 Impact 22 | . . . . . . . . . . . . . . 14 8 . Slashing 98 | . . . . . . . . 26 . 4 17 16 . . . 35 Piercing . | . . . . . . . . . . . . . . . . . Sneak Attacks 8 | . . . . . . . . . . 1 1 2 . . 3 1 Combat Hostiles 1 | . . . . . . . . . . 1 . . . . . . Follow-up Attacks . | . . . . . . . . . . . . . . . . . Damage Inflicted 8932 | 74 426 247 . 137 878 . 841 1529 . 278 1451 993 . 541 463 1074 Guns 3514 | 74 426 89 . 137 872 . 237 44 . 185 1072 356 . 22 . . Cannons . | . . . . . . . . . . . . . . . . . Explosions 2444 | . . 150 . . . . 600 704 . . . . . . . 990 Melee 2882 | . . . . . . . . 781 . 93 305 637 . 519 463 84 Ramming 92 | . . 8 . . 6 . 4 . . . 74 . . . . . Kinetic 982 | . . 39 . 64 283 . 71 25 . 152 69 257 . 22 . . Thermal 2433 | 74 426 50 . 73 589 . 166 19 . 33 1003 . . . . . Explosive 2444 | . . 150 . . . . 600 704 . . . . . . . 990 Electromagnetic 99 | . . . . . . . . . . . . 99 . . . . Impact 982 | . . . . . . . . . . . . . . 519 463 . Slashing 1900 | . . . . . . . . 781 . 93 305 637 . . . 84 Piercing . | . . . . . . . . . . . . . . . . . Highest Corruption 6 | . . . . . . . . . . . 6 6 . . . 5 Average Corruption 2 | . . . . . . . . . . . 1 3 . . . 3 Corruption Purged . | . . . . . . . . . . . . . . . . . Corruption Blocked 8 | . . . . . . . . . . . . . . . 3 5 Effects 9 | . . . . . . . . . . . 4 4 . . . 1 Message Errors 2 | . . . . . . . . . . . 1 1 . . . . Matter Fused 3 | . . . . . . . . . . . 1 2 . . . . Heat Flow Errors 2 | . . . . . . . . . . . 1 . . . . 1 Energy Discharges 2 | . . . . . . . . . . . 1 1 . . . . Overload Shots . | . . . . . . . . . . . . . . . . . Overflow Damage 673 | . . 1 . . . . . 18 . . 59 132 . 142 265 56 Projectiles . | . . . . . . . . . . . . . . . . . Explosions 57 | . . 1 . . . . . . . . . . . . . 56 Melee 616 | . . . . . . . . 18 . . 59 132 . 142 265 . Knockbacks 5 | . . . . . . . . . . . 1 . . 2 2 . Impact 4 | . . . . . . . . . . . 1 . . 1 2 . Kinetic . | . . . . . . . . . . . . . . . . . Secondary 1 | . . . . . . . . . . . . . . 1 . . Self-Inflicted Damage 46 | . . 16 . . . . . 30 . . . . . . . . Shots 2 | . . 1 . . . . . 1 . . . . . . . . Rammed 2 | . . 2 . . . . . . . . . . . . . . Targets Rammed 12 | . . 2 . . 2 . 1 . . . 7 . . . . . Kicked 10 | . . . . . 2 . 1 . . . 7 . . . . . Crushed . | . . . . . . . . . . . . . . . . . Highest Temperature 332 | 90 291 111 . 168 301 . 2 . . 60 332 . . . . 130 Average Temperature 106 | 46 99 55 . 87 143 . 2 . . 29 112 . . . . 70 Received Heat Transfer 1593 | . 111 57 . 63 288 . 54 234 . 63 291 18 . 140 130 144 Effects 5 | . 1 . . . 1 . . . . . 3 . . . . . Energy Bleed 3 | . 1 . . . 1 . . . . . 1 . . . . . Interference 2 | . . . . . . . . . . . 2 . . . . . Siege Activations . | . . . . . . . . . . . . . . . . . Robots Corrupted . | . . . . . . . . . . . . . . . . . Combat Hostiles . | . . . . . . . . . . . . . . . . . Parts Fried 12 | . . . . . . . . . . . . . . 2 10 . Impact Corruptions 15 | . . . . . . . . . . . . . . 7 8 . Robots Melted 3 | . 1 . . 1 . . . . . . 1 . . . . . Combat Hostiles 2 | . 1 . . 1 . . . . . . . . . . . . Parts Melted 7 | . 2 . . 1 2 . . . . . 2 . . . . . Heat Transferred 5942 | 186 1436 148 . 370 1433 . 333 37 . 74 1925 . . . . . Parts Sabotaged . | . . . . . . . . . . . . . . . . . Parts Stolen . | . . . . . . . . . . . . . . . . . Parts Stripped . | . . . . . . . . . . . . . . . . . Power Chain Reactions . | . . . . . . . . . . . . . . . . . Alert | -11 -10 -10 -10 -9 -8 -7 -7 -7 -7 -6 -6 -5 -4 -4 -3 -2 ------- Run | Yrd Mat Min Exi Min Mat Fac Low Low Dat Pro Fac Fac Fac DSF Res Res Peak Influence 724 | 5 122 170 . 50 104 . . . . . 94 66 32 104 474 724 Initial 274 | . 3 31 . . . . . . . . 9 13 32 22 13 274 Average 89 | 1 49 138 . 36 40 . . . . . 41 32 32 55 141 409 Maximum Alert Level 3 | . . . . . . . . . . . . . . . 2 3 Low Security (%) 87 | 100 100 100 . 100 100 100 . . . . 100 100 100 100 69 . Level 1 7 | . . . . . . . . . . . . . . . 25 58 Level 2 4 | . . . . . . . . . . . . . . . 5 38 Level 3 . | . . . . . . . . . . . . . . . . 3 Level 4 . | . . . . . . . . . . . . . . . . . Level 5 . | . . . . . . . . . . . . . . . . . High Security . | . . . . . . . . . . . . . . . . . Max Security . | . . . . . . . . . . . . . . . . . Squads Dispatched 20 | . 1 . . . 2 1 . 1 . . 5 2 . 2 1 5 Investigation 1 | . . . . . . 1 . . . . . . . . . . Extermination 4 | . . . . . . . . . . . 2 1 . . . 1 Reinforcement 11 | . 1 . . . 2 . . . . . 2 . . 2 1 3 Assault 3 | . . . . . . . . 1 . . . 1 . . . 1 Garrison 1 | . . . . . . . . . . . 1 . . . . . Intercept . | . . . . . . . . . . . . . . . . . Searches Triggered 2 | . . . . . . . . . . . . . . . . 2 Construction Impeded 1 | . . . . . . . . . . . 1 . . . . . Haulers Reinforced . | . . . . . . . . . . . . . . . . . Active Scanning Responses . | . . . . . . . . . . . . . . . . . Cargo Convoy Interrupts 1 | . . . . . . . . . . . 1 . . . . . Stealth | -11 -10 -10 -10 -9 -8 -7 -7 -7 -7 -6 -6 -5 -4 -4 -3 -2 --------- Run | Yrd Mat Min Exi Min Mat Fac Low Low Dat Pro Fac Fac Fac DSF Res Res Distress Signals 8 | . 2 1 . . . . . . . . . . . . 2 3 Communications Jammed . | . . . . . . . . . . . . . . . . . Distress Signals . | . . . . . . . . . . . . . . . . . Times Spotted 190 | . 10 5 . 1 11 . 9 11 . 6 35 11 . 9 29 53 Peak Tracking Total 22 | . 3 3 . 1 3 . 4 11 . 4 22 5 . 4 15 20 Tactical Retreats 23 | . . . . . . . . 3 . . 1 . . 1 6 12 Traps | -11 -10 -10 -10 -9 -8 -7 -7 -7 -7 -6 -6 -5 -4 -4 -3 -2 ------- Run | Yrd Mat Min Exi Min Mat Fac Low Low Dat Pro Fac Fac Fac DSF Res Res Traps Triggered 7 | . 2 . . . . 1 . . . . . . . 3 1 . Indirectly . | . . . . . . . . . . . . . . . . . Trap Hack Attempts . | . . . . . . . . . . . . . . . . . Triggered . | . . . . . . . . . . . . . . . . . Disarmed . | . . . . . . . . . . . . . . . . . Reprogrammed . | . . . . . . . . . . . . . . . . . Reused . | . . . . . . . . . . . . . . . . . Traps Extracted . | . . . . . . . . . . . . . . . . . Installed . | . . . . . . . . . . . . . . . . . Triggered 1 | . . 1 . . . . . . . . . . . . . . Machines | -11 -10 -10 -10 -9 -8 -7 -7 -7 -7 -6 -6 -5 -4 -4 -3 -2 ---------- Run | Yrd Mat Min Exi Min Mat Fac Low Low Dat Pro Fac Fac Fac DSF Res Res Machines Disabled 7 | . . . . . 1 . . 2 . . . 1 . 1 . 2 Max in Single Turn 2 | . . . . . 1 . . 1 . . . 1 . 1 . 2 Garrison Access 2 | . . . . . . . . . . . . 1 . . . 1 Machines Repaired . | . . . . . . . . . . . . . . . . . Machines Dismantled . | . . . . . . . . . . . . . . . . . Machines Sabotaged . | . . . . . . . . . . . . . . . . . Overloaded Fab Kills . | . . . . . . . . . . . . . . . . . Hacking | -11 -10 -10 -10 -9 -8 -7 -7 -7 -7 -6 -6 -5 -4 -4 -3 -2 --------- Run | Yrd Mat Min Exi Min Mat Fac Low Low Dat Pro Fac Fac Fac DSF Res Res Machines Accessed 25 | . 4 . 2 . 5 . 1 . 4 . 1 3 1 . 2 2 Terminals 17 | . 4 . . . 5 . . . . . 1 3 1 . 2 1 Fabricators . | . . . . . . . . . . . . . . . . . Repair Stations . | . . . . . . . . . . . . . . . . . Recycling Units . | . . . . . . . . . . . . . . . . . Scanalyzers . | . . . . . . . . . . . . . . . . . Garrison Access 1 | . . . . . . . . . . . . . . . . 1 Total Hacks 99 | . 10 . 24 . 14 . 1 . 29 . 6 9 1 . 2 3 Successful 67 | . 1 . 24 . 6 . 1 . 29 . . 5 1 . . . Failed 32 | . 9 . . . 8 . . . . . 6 4 . . 2 3 Catastrophic 9 | . 4 . . . 2 . . . . . . 1 . . 1 1 Database Lockouts . | . . . . . . . . . . . . . . . . . Manual 36 | . 10 . 1 . 12 . . . . . 1 8 . . 2 2 Terminals 44 | . 10 . . . 14 . . . . . 6 9 1 . 2 2 Fabricators . | . . . . . . . . . . . . . . . . . Repair Stations . | . . . . . . . . . . . . . . . . . Recycling Units . | . . . . . . . . . . . . . . . . . Scanalyzers . | . . . . . . . . . . . . . . . . . Garrison Access 1 | . . . . . . . . . . . . . . . . 1 Terminal Hacks 60 | . . . 24 . 3 . 1 . 29 . . 2 1 . . . Record 35 | . . . 23 . 1 . . . 11 . . . . . . . Part Schematic 10 | . . . . . . . . . 10 . . . . . . . Robot Schematic 5 | . . . . . . . . . 5 . . . . . . . Prototype ID Bank 3 | . . . . . . . . . 3 . . . . . . . Open Door 1 | . . . . . . . 1 . . . . . . . . . Open DSF 1 | . . . . . . . . . . . . . 1 . . . Branch Access Points 2 | . . . . . 1 . . . . . . 1 . . . . Zone Layout 2 | . . . . . 1 . . . . . . 1 . . . . Derelict Proto ID Bank 1 | . . . 1 . . . . . . . . . . . . . Fabricator Hacks . | . . . . . . . . . . . . . . . . . Repair Station Hacks . | . . . . . . . . . . . . . . . . . Recycling Unit Hacks . | . . . . . . . . . . . . . . . . . Scanalyzer . | . . . . . . . . . . . . . . . . . Garrison Access Hacks . | . . . . . . . . . . . . . . . . . Unauthorized Hacks 7 | . 1 . . . 3 . . . . . . 3 . . . . Terminals 7 | . 1 . . . 3 . . . . . . 3 . . . . Botnet 7 | . 1 . . . 3 . . . . . . 3 . . . . Fabricators . | . . . . . . . . . . . . . . . . . Repair Stations . | . . . . . . . . . . . . . . . . . Recycling Units . | . . . . . . . . . . . . . . . . . Scanalyzers . | . . . . . . . . . . . . . . . . . Garrison Access . | . . . . . . . . . . . . . . . . . Data Cores Recovered 1 | . . . . . . . . . . . 1 . . . . . Used . | . . . . . . . . . . . . . . . . . Hacking Detections 17 | . 4 . . . 5 . . . . . 1 3 . . 2 2 Full Trace Events . | . . . . . . . . . . . . . . . . . Feedback Events . | . . . . . . . . . . . . . . . . . Feedback Blocked . | . . . . . . . . . . . . . . . . . Robot Schematics Acquired 5 | . . . . . . . . . 5 . . . . . . . Robots Built . | . . . . . . . . . . . . . . . . . Authchips . | . . . . . . . . . . . . . . . . . Time . | . . . . . . . . . . . . . . . . . Total Robot Build Rating . | . . . . . . . . . . . . . . . . . Part Schematics Acquired 10 | . . . . . . . . . 10 . . . . . . . Parts Built . | . . . . . . . . . . . . . . . . . Authchips . | . . . . . . . . . . . . . . . . . Time . | . . . . . . . . . . . . . . . . . Total Part Build Rating . | . . . . . . . . . . . . . . . . . Parts Repaired . | . . . . . . . . . . . . . . . . . Time . | . . . . . . . . . . . . . . . . . Parts Recycled . | . . . . . . . . . . . . . . . . . Recycled Matter . | . . . . . . . . . . . . . . . . . Retrieved Matter . | . . . . . . . . . . . . . . . . . Retrieved Components . | . . . . . . . . . . . . . . . . . Parts Scanalyzed . | . . . . . . . . . . . . . . . . . Part Schematics Acquired . | . . . . . . . . . . . . . . . . . Parts Damaged . | . . . . . . . . . . . . . . . . . Bothacking | -11 -10 -10 -10 -9 -8 -7 -7 -7 -7 -6 -6 -5 -4 -4 -3 -2 ------------ Run | Yrd Mat Min Exi Min Mat Fac Low Low Dat Pro Fac Fac Fac DSF Res Res Used RIF Installer . | . . . . . . . . . . . . . . . . . Robots Hacked . | . . . . . . . . . . . . . . . . . Non-combat . | . . . . . . . . . . . . . . . . . Combat . | . . . . . . . . . . . . . . . . . Robot Hacks Applied . | . . . . . . . . . . . . . . . . . Relay Couplers Released 4 | . . . . . . . . . . . . 3 . . . 1 Machine Destruction 4 | . . . . . . . . . . . . 3 . . . 1 Fabnet Peak Effective % . | . . . . . . . . . . . . . . . . . Robots Rewired 2 | . . . . . . . . 2 . . . . . . . . Allies Hacked . | . . . . . . . . . . . . . . . . . Hacks Repelled . | . . . . . . . . . . . . . . . . . Allies | -11 -10 -10 -10 -9 -8 -7 -7 -7 -7 -6 -6 -5 -4 -4 -3 -2 -------- Run | Yrd Mat Min Exi Min Mat Fac Low Low Dat Pro Fac Fac Fac DSF Res Res Total Allies 3 | . . . . . . . . 2 . 1 . . . . . . Largest Group 3 | . . . . . . . . 2 2 3 . . . . . . Highest-Rated Group 142 | . . . . . . . . 46 46 142 . . . . . . Highest-Rated Ally 96 | . . . . . . . . 30 30 96 . . . . . . Total Orders . | . . . . . . . . . . . . . . . . . Ally Attacks 32 | . . . . . . . . 14 . 18 . . . . . . Total Damage 639 | . . . . . . . . 170 . 469 . . . . . . Kills 4 | . . . . . . . . 1 . 3 . . . . . . Allies Corrupted . | . . . . . . . . . . . . . . . . . Allies Melted . | . . . . . . . . . . . . . . . . . Intel | -11 -10 -10 -10 -9 -8 -7 -7 -7 -7 -6 -6 -5 -4 -4 -3 -2 ------- Run | Yrd Mat Min Exi Min Mat Fac Low Low Dat Pro Fac Fac Fac DSF Res Res Robot Analysis Total . | . . . . . . . . . . . . . . . . . Derelict Logs Recovered 7 | . . . . 1 . . 2 2 . 2 . . . . . . Drone Launches . | . . . . . . . . . . . . . . . . . Drone Recoveries . | . . . . . . . . . . . . . . . . . Exploration | -11 -10 -10 -10 -9 -8 -7 -7 -7 -7 -6 -6 -5 -4 -4 -3 -2 ------------- Run | Yrd Mat Min Exi Min Mat Fac Low Low Dat Pro Fac Fac Fac DSF Res Res Turns Passed 7319 | 61 667 271 352 537 917 90 380 686 95 511 970 780 2 133 304 563 Spaces Moved 5800 | 41 410 152 219 252 499 74 238 418 76 367 552 690 5 113 592 1102 Core 374 | 3 1 . . . . . . . . . . 120 . 20 81 149 Treads 571 | . 200 152 219 . . . . . . . . . . . . . Legs 2862 | . . . . 252 499 74 238 417 76 367 551 356 . 32 . . Wheels 292 | 38 209 . . . . . . 1 . . 1 43 . . . . Hover 43 | . . . . . . . . . . . . . . . 43 . Flight 1658 | . . . . . . . . . . . . 171 5 61 468 953 Fastest Speed 31 | 50 90 160 160 120 120 120 120 100 125 123 123 39 39 39 34 31 Average Speed 99 | 89 124 160 160 188 120 120 134 137 125 123 125 90 39 59 39 36 Slowest Speed 260 | 100 250 160 160 190 120 120 190 195 125 125 260 190 39 100 60 100 Overloaded Moves 12 | . . . . . . . . . . . . . . . . 12 Propulsion Burnouts . | . . . . . . . . . . . . . . . . . Robots Hopped 18 | . . . . . . . . . . . . 1 . . 5 12 Cave-ins Triggered . | . . . . . . . . . . . . . . . . . Exploration Rate (%) 42 | 4 61 39 60 56 36 3 52 56 68 61 15 23 . 69 25 52 Regions Visited 16 Branch Regions 7 Pre-discovered Areas 3 | . . 1 1 . . . . . 1 . . . . . . . Known Exits Taken 5 | . . . . . . . 1 1 . . 1 . 1 . 1 . Unknown Exits Taken 10 | 1 1 1 1 1 1 1 . . 1 1 . 1 . . . . Scrap Searched 6 | . . . . . . . . 4 . 2 . . . . . . Spaces Dug 91 | . . . . . . . 8 . . 3 8 2 . . 3 67 Terrain Destroyed 152 | . . 9 . . . . 21 24 . 3 8 2 . . 3 82 Melee 48 | . . . . . . . . . . 3 7 2 . . 3 33 Projectile 1 | . . . . . . . . . . . 1 . . . . . AOE 103 | . . 9 . . . . 21 24 . . . . . . . 49 Terrain Rammed . | . . . . . . . . . . . . . . . . . Walls Destroyed . | . . . . . . . . . . . . . . . . . Machines Disabled . | . . . . . . . . . . . . . . . . . Actions | -11 -10 -10 -10 -9 -8 -7 -7 -7 -7 -6 -6 -5 -4 -4 -3 -2 --------- Run | Yrd Mat Min Exi Min Mat Fac Low Low Dat Pro Fac Fac Fac DSF Res Res Total 6851 | 56 514 164 222 299 768 75 269 482 76 399 741 800 4 148 642 1192 Wait 499 | 1 51 . . 28 195 . 7 2 1 1 103 43 . . 33 34 Move 5752 | 40 409 151 218 251 498 73 237 417 75 366 551 687 4 112 582 1081 Hop 14 | . . . . . . . . . . . . 1 . . 4 9 Pick Up 60 | 6 6 . 1 3 12 . 2 2 . 4 4 11 . 4 2 3 Fast Attach 72 | 6 8 . . 2 5 . . 4 . 4 10 8 . 9 6 10 Attach 36 | . 1 . . . 4 2 . 4 . 2 3 7 . 4 2 7 Detach 14 | . 1 . . 1 . . . 1 . . 1 3 . 1 . 6 Swap 36 | . 4 3 1 4 7 . 4 2 . . 8 . . 1 . 2 Drop 58 | . 7 1 2 3 19 . 2 . . 1 9 10 . 1 2 1 Fire 155 | 3 27 7 . 7 26 . 16 4 . 17 28 14 . 2 . 4 Melee 120 | . . . . . . . . 26 . 4 17 16 . 14 8 35 Ram . | . . . . . . . . . . . . . . . . . Kick 10 | . . . . . 2 . 1 . . . 7 . . . . . Crush 2 | . . 2 . . . . . . . . . . . . . . Escape Stasis 3 | . . . . . . . . . . . . . . . 3 . Rewire 20 | . . . . . . . . 20 . . . . . . . . Trap . | . . . . . . . . . . . . . . . . . Miscellaneous . | . . . . . . . . . . . . . . . . . Route ------- -11/Scrapyard -10/Materials (discovered 4 exits: [*Mat x2] / [*Min x2]) -10/Mines (discovered 2 exits: [*Mat] / *Exi) -10/Exiles -9/Mines -8/Materials -7/Factory -7/Lower Caves -7/Lower Caves -7/Data Miner -6/Proximity Caves -6/Factory (discovered 2 exits: *Fac x2) -5/Factory (discovered 5 exits: *Fac / Upp x2 / Ext x2) -4/Factory -4/DSF -3/Research (discovered 2 exits: *Res / *Qua) -2/Research (discovered 2 exits: [*Acc] / *Tes) History --------- Turn | Location | Event 9 | -11/Scrapyard | Discovered new exit (range 15) 62 | -11/Scrapyard | Entered Materials 94 | -10/Materials | Discovered new exit (range 10) 235 | -10/Materials | Discovered new exit (range 15) 300 | -10/Materials | Build established: Mutant 470 | -10/Materials | Discovered new exit (range 15) 622 | -10/Materials | Discovered new exit (range 14) 729 | -10/Materials | Entered Mines 799 | -10/Mines | Discovered new exit (range 11) 919 | -10/Mines | Learned location of Storage (-9) 993 | -10/Mines | Deemed a non-threat by the Exiles lab entrance 993 | -10/Mines | Discovered new exit (range 5) 1000 | -10/Mines | Entered Exiles 1039 | -10/Exiles | Met 8R-AWN 1068 | -10/Exiles | Met EX-HEX 1111 | -10/Exiles | Met EX-BIN 1128 | -10/Exiles | Aligned with FarCom system 1130 | -10/Exiles | Given EX-Vault access code 1167 | -10/Exiles | Opened EX-Vault 1180 | -10/Exiles | Found 0b10 Alert Chip 1213 | -10/Exiles | Warned to stay clear of 0b10 Research branches 1260 | -10/Exiles | Met EX-DEC 1266 | -10/Exiles | Learned location of Zion (-6) 1339 | -10/Exiles | Discovered new exit (range 10) 1352 | -10/Exiles | Left Exiles lab with 0b10 Alert Chip 1352 | -10/Exiles | Entered Mines 1494 | -9/Mines | Received a Rocket Launcher from a helpful Derelict 1847 | -9/Mines | Discovered new exit (range 10) 1876 | -9/Mines | Learned 4 Materials zone layouts 1889 | -9/Mines | Entered Materials 1889 | -8/Materials | Evolved 4 slots: Propulsion x1, Utility x2, Weapon x1 2187 | -8/Materials | Build established: Scavenger-Skirmisher 2795 | -8/Materials | Discovered new exit (range 10) 2806 | -8/Materials | Entered Factory 2806 | -7/Factory | Evolved 2 slots: Utility x2 2891 | -7/Factory | Discovered new exit (range 3) 2896 | -7/Factory | Entered Lower Caves 3012 | -7/Lower Caves | Learned Factory emergency access door positions 3084 | -7/Lower Caves | Attracted the attention of an 0b10 checkpoint 3179 | -7/Lower Caves | Identified exit to Lower Caves 3196 | -7/Lower Caves | Build established: Scavenger-Gunner 3268 | -7/Lower Caves | Encountered a Warlord checkpoint 3276 | -7/Lower Caves | Entered another Lower Caves area 3389 | -7/Lower Caves | Attracted the attention of an 0b10 outpost 3485 | -7/Lower Caves | Lost 11 parts (1p4n4u2w) 3489 | -7/Lower Caves | Destroyed 9 combat bots 3689 | -7/Lower Caves | Build established: Mutant 3848 | -7/Lower Caves | Learned location of 1 exit from Factory 3881 | -7/Lower Caves | Encountered a Warlord checkpoint 3888 | -7/Lower Caves | Identified exit to Data Miner 3962 | -7/Lower Caves | Entered Data Miner 3962 | -7/Data Miner | Accompanied by 2 allies 3962 | -7/Data Miner | Discovered new exit (range 6) 3986 | -7/Data Miner | Met Data Miner 4011 | -7/Data Miner | Learned location of Section 7 (-3) 4011 | -7/Data Miner | Acquired the access code to Warlord's prototype stash 4029 | -7/Data Miner | Received God Mode back door access code from Data Miner 4057 | -7/Data Miner | Entered Proximity Caves 4057 | -6/Proximity Caves | Accompanied by 2 allies 4065 | -6/Proximity Caves | Escorted by Enhanced Grunt 4297 | -6/Proximity Caves | Learned Factory security intel 4392 | -6/Proximity Caves | Learned location of 1 exit from Factory 4411 | -6/Proximity Caves | Attracted the attention of an 0b10 checkpoint 4411 | -6/Proximity Caves | Core integrity fell below 50% 4419 | -6/Proximity Caves | Build established: Scavenger-Mutant 4562 | -6/Proximity Caves | Discovered new exit (range 6) 4568 | -6/Proximity Caves | Entered Factory 4568 | -6/Factory | Evolved 2 slots: Propulsion x1, Utility x1 4569 | -6/Factory | Identified exit to Factory 4914 | -6/Factory | Build established: Mutant 5477 | -6/Factory | Garrison activated, responded to threat 5487 | -6/Factory | Cargo convoy interrupted 5538 | -6/Factory | Entered another Factory area 5538 | -5/Factory | Evolved 2 slots: Utility x1, Weapon x1 5569 | -5/Factory | Lost 9 parts (1p3n2u3w) 5863 | -5/Factory | Build established: Scavenger-Mutant 6177 | -5/Factory | Identified exit to Upper Caves 6177 | -5/Factory | Identified exit to Extension 6183 | -5/Factory | Lost 5 parts (2n3w) 6314 | -5/Factory | Discovered new exit (range 9) 6318 | -5/Factory | Entered another Factory area 6318 | -4/Factory | Evolved 2 slots: Utility x2 6320 | -4/Factory | Identified exit to DSF 6320 | -4/Factory | Entered DSF 6368 | -4/DSF | Additional patrols routed to DSF 6425 | -4/DSF | Lost 3 parts (2n1u) 6437 | -4/DSF | Discovered new exit (range 11) 6447 | -4/DSF | Core integrity fell below 50% 6453 | -4/DSF | Identified exit to Research 6453 | -4/DSF | Entered Research 6453 | -3/Research | Evolved 2 slots: Power x1, Utility x1 6481 | -3/Research | Lost 8 parts (1p3n3u1w) 6602 | -3/Research | Spotted B-86 Titan 6689 | -3/Research | Found Fusion Bomb Launcher 6708 | -3/Research | Discovered new exit (range 5) 6709 | -3/Research | Identified exit to Quarantine 6748 | -3/Research | Discovered new exit (range 11) 6757 | -3/Research | Identified exit to Research 6757 | -3/Research | Entered another Research area 6757 | -2/Research | Evolved 2 slots: Propulsion x2 6759 | -2/Research | Build established: Mutant 7047 | -2/Research | Search patrols dispatched 7143 | -2/Research | Discovered new exit (range 9) 7145 | -2/Research | Identified exit to Testing 7166 | -2/Research | Spotted B-90 Cyclops 7240 | -2/Research | Lost 7 parts (3n3u1w) 7250 | -2/Research | Core integrity fell below 50% 7257 | -2/Research | Search patrols dispatched 7280 | -2/Research | Spotted B-90 Cyclops 7289 | -2/Research | Lost 5 parts (4u1w) 7293 | -2/Research | Core integrity fell below 20% 7318 | -2/Research | Discovered new exit (range 14) 7320 | -2/Research | Destroyed by Y-72 Warden with Railgun Last Messages --------------- 07257_ Slug penetrates Wall. 07257_ Penetrated by Slug. 07258_ Adv. Corruption Screen destroyed. 07260_ Slug penetrates Wall. 07283_ Acquired Field Propulsion Array. 07288_ Door malfunctions. 07288_ Acquired Field Propulsion Array. 07294_ System corrupted: Heat flow error (+152). 07294_ P-80 Master resets P-80 Master, system corruption cleaned. 07295_ Slug penetrates P-80 Master. 07295_ Slug penetrates Wall. 07298_ Penetrated by Slug. 07298_ Lgt. Quantum Reactor destroyed. 07298_ Penetrated by Slug. 07299_ P-80 Master resets P-80 Master, system corruption cleaned. 07304_ Field Propulsion Array destroyed. 07308_ Adv. Targeting Computer destroyed. 07309_ Lgt. Quantum Reactor destroyed. 07316_ Critical hit (Burn: +37). 07318_ EXIT=FOUND Map ----- +----------------------------------------------------+ | ?????????????????????????????????????# | | ?????????????????????????????????????# | | ????????????????????????????########?# | | ??????????????????????????# ?# | | ??????????????????????????# ?# | | ??????????????????????????#"" """## | | ??????????????????#########"Y """## | | ??????????????????? = #"" """#? ! | | ??????????????????# # ???? ? | | ??????????????????# """ # ???????? ??? | | ??????????????????# """ # ?????????###+##### | | ??????????????????# """ ###+############ | | ??????????????????# """ / g | | ??????????????????# """ #g p g pl | | ??????????????????# """ ##p############# | | ??????????????????# """ ##p#???????????####+### | | ??????????????????# ##g#??????????????????# | | ??????????????????? = ##g#??????????????????# | | ??????????????????##########g#??????????????????# | | ??????????????????# /g#??????????????????# | | ??????????????????# #g#??????????????????# | | ??????????????????# !??#g#??????????????????# | | ??????????????????# ????#b#??????????????????## | | ??????????????????###??????#g#???????????????????? | | ?????????????????########### ##+#####????????????? | | ?????????? k